fUSD/lending_fUSD_20240820
["ID","MTS","AMOUNT","RATE_DAILY","PERIOD"]
[335395535,1724183738374,172.23412486,5e-05,2]
[335395536,1724183755762,307.97477197,9.829e-05,2]
[335395537,1724183778416,159.97484519,9.829e-05,2]
[335395538,1724183798158,561.60120989,9.829e-05,2]
[335395539,1724183798266,3073.03961073,9.829e-05,2]
[335395540,1724183800576,150.52261351,9.829e-05,2]
[335395541,1724183800596,542.5749471,9.829e-05,2]
[335395542,1724183875335,3460.85683861,9.829e-05,2]
[335395543,1724183883278,5996.56821429,9.829e-05,2]
[335395544,1724183883299,10000.0,9.829e-05,2]
[335395545,1724183883320,249.544494,9.829e-05,2]
[335395546,1724183883838,500.0,9.829e-05,2]
[335395547,1724183884187,500.0,9.829e-05,2]
[335395548,1724183884518,500.0,9.829e-05,2]
[335395549,1724183884840,500.0,9.829e-05,2]
[335395550,1724183885160,500.0,9.829e-05,2]
[335395551,1724183885486,822.0,9.829e-05,2]
[335395552,1724184009537,838.98,9.861e-05,2]
[335395555,1724184049980,961.92,9.878e-05,2]
[335395556,1724184062259,4186.98,9.87e-05,2]
[335395557,1724184068330,440.575506,9.829e-05,2]
[335395558,1724184068351,10000.0,9.829e-05,2]
[335395559,1724184068374,9967.77403451,9.829e-05,2]
[335395560,1724184080697,32.22596549,9.871e-05,2]
[335395561,1724184080716,1555.02403451,9.871e-05,2]
[335395562,1724184089967,155.17442488,9.878e-05,2]
[335395563,1724184091222,1269.59062795,9.878e-05,2]
[335395564,1724184092507,155.29901352,9.878e-05,2]
[335395565,1724184105170,412.14592953,9.878e-05,2]
[335395566,1724184105788,291.80613083,9.878e-05,2]
[335395567,1724184108280,3078.13857665,9.878e-05,2]
[335395568,1724184111426,287.37420846,9.878e-05,2]
[335395569,1724184116685,155.11102333,9.878e-05,2]
[335395570,1724184116832,423.64,9.863e-05,2]
[335395571,1724184166356,1386.60152163,9.878e-05,2]
[335395572,1724184189861,320.0,9.847e-05,2]
[335395573,1724184192143,510.09450871,9.847e-05,2]
[335395574,1724184192164,2240.02549129,9.847e-05,2]
[335395575,1724184208223,174.16188238,9.863e-05,2]
[335395576,1724184213737,454.85,8.219e-05,2]
[335395577,1724184228186,150.0,9.84e-05,2]
[335395578,1724184285811,429.53,9.828e-05,2]
[335395579,1724184293190,200.24672948,9.779e-05,2]
[335395580,1724184329676,200.0,9.834e-05,2]
[335395581,1724184332329,950.066428,9.861e-05,2]
[335395582,1724184373380,1358.55,9.855e-05,2]
[335395583,1724184378821,3842.56946885,9.779e-05,2]
[335395584,1724184378842,10000.0,9.779e-05,2]
[335395585,1724184378863,2403.54323944,9.779e-05,2]
[335395586,1724184385271,1311.21932228,9.779e-05,2]
[335395587,1724184390196,412.21466658,9.779e-05,2]
[335395588,1724184392591,693.69786065,9.779e-05,2]
[335395589,1724184393000,264.54478532,9.779e-05,2]
[335395590,1724184394505,159.18491271,9.779e-05,2]
[335395591,1724184395479,170.21,9.83e-05,2]
[335395592,1724184399270,1269.9153111,9.779e-05,2]
[335395593,1724184403559,184.71,9.793e-05,2]
[335395594,1724184412631,3130.75990192,9.815e-05,2]
[335395595,1724184412653,6913.92009808,9.815e-05,2]
[335395596,1724184416294,3053.1830351,9.779e-05,2]
[335395597,1724184421992,32.89686682,9.779e-05,2]
[335395598,1724184422013,258.93324454,9.779e-05,2]
[335395599,1724184424713,155.0,9.779e-05,2]
[335395601,1724184432559,200.0,9.823e-05,2]
[335395604,1724184436166,908.2,9.816e-05,2]
[335395606,1724184440563,3146.2976,9.811e-05,2]
[335395609,1724184455050,5331.56915546,9.86e-05,2]
[335395610,1724184455072,10000.0,9.86e-05,2]
[335395611,1724184455093,139.11984253,9.86e-05,2]
[335395612,1724184485950,159.00019183,9.816e-05,2]
[335395613,1724184502431,802.77801531,9.816e-05,2]
[335395614,1724184509076,760.72426636,9.816e-05,2]
[335395615,1724184511306,8138.37768397,9.816e-05,2]
[335395616,1724184511327,8107.73502432,9.816e-05,2]
[335395617,1724184525715,-318.93358394,9.91e-05,2]
[335395620,1724184532317,291.7821503,9.816e-05,2]
[335395621,1724184545555,250.0,9.768e-05,2]
[335395637,1724184547708,194.08966662,9.816e-05,2]
[335395641,1724184560284,1156.39315876,9.816e-05,2]
[335395642,1724184560305,154.82616352,9.816e-05,2]
[335395643,1724184562361,492.59,9.783e-05,2]
[335395646,1724184602277,1270.18697247,9.816e-05,2]
[335395649,1724184606310,8082.39686401,9.816e-05,2]
[335395650,1724184606332,8158.08517636,9.816e-05,2]
[335395651,1724184622086,760.05715064,9.816e-05,2]
[335395674,1724184631598,-534.83187124,9.909e-05,2]
[335395675,1724184631705,-17.28322876,9.909e-05,2]
[335395676,1724184631715,-445.24893456,9.915e-05,2]
[335395677,1724184631727,-1530.65106544,9.915e-05,2]
[335395678,1724184631736,-432.47832469,9.941e-05,2]
[335395679,1724184631745,-203.56323821,9.941e-05,2]
[335395680,1724184631755,-215.23279799,9.941e-05,2]
[335395681,1724184631765,-380.32741541,9.943e-05,2]
[335395682,1724184631774,-155.0,9.943e-05,2]
[335395683,1724184631787,-219.07389839,9.943e-05,2]
[335395684,1724184631796,-365.80180037,9.943e-05,2]
[335395685,1724184631806,-241.97615057,9.943e-05,2]
[335395686,1724184631815,-1178.07631461,9.943e-05,2]
[335395687,1724184631825,-153.72,9.985e-05,2]
[335395688,1724184631835,-155.0,9.988e-05,2]
[335395689,1724184631845,-309.39614277,9.988e-05,2]
[335395690,1724184631854,-160.0,9.988e-05,2]
[335395691,1724184631863,-159.60847032,9.988e-05,2]
[335395692,1724184631873,-493.59808335,9.988e-05,2]
[335395693,1724184631882,-155.0,9.988e-05,2]
[335395694,1724184631892,-155.0,9.988e-05,2]
[335395695,1724184631902,-357.71830702,9.988e-05,2]
[335395696,1724184631911,-687.53484988,9.999e-05,2]
[335395697,1724184631920,-155.0,9.999e-05,2]
[335395698,1724184631929,-267.65831928,0.0001,2]
[335395699,1724184631941,-232.34168072,0.0001,2]
[335395700,1724184631951,-328.2488375,0.0001,2]
[335395701,1724184631960,-313.76877667,0.00010026,2]
[335395702,1724184631970,-172.87,0.00010093,2]
[335395703,1724184631979,-499.99,0.00010302,2]
[335395704,1724184631989,-454.85,0.00010468,2]
[335395705,1724184631999,-270.58164358,0.00010471,2]
[335395706,1724184632009,-155.0,0.00010471,2]
[335395707,1724184632019,-2387.97522321,0.00010505,2]
[335395708,1724184632028,-1160.83437949,0.00010521,2]
[335395709,1724184632039,-2891.96125648,0.00010521,2]
[335395710,1724184632051,-343.36626588,0.00010521,2]
[335395711,1724184632063,-637.87809815,0.00010521,2]
[335395712,1724184632072,-680.0,0.00010563,2]
[335395713,1724184632081,-125.80735335,0.00010566,2]
[335395714,1724184632999,1081.857673,9.809e-05,2]
[335395715,1724184633021,4941.50503918,9.809e-05,2]
[335395720,1724184637560,-155.0,9.999e-05,2]
[335395721,1724184637569,-295.95372915,0.00010566,2]
[335395722,1724184637580,-2421.42490666,0.00010566,2]
[335395723,1724184637590,-155.0,0.00010699,2]
[335395724,1724184637599,-891.63165293,0.00010713,2]
[335395725,1724184637609,-524.99967728,0.00010713,2]
[335395726,1724184637619,-155.0,0.00010713,2]
[335395727,1724184637628,-793.43,0.0001076,2]
[335395728,1724184637638,-155.18840047,0.00010861,2]
[335395729,1724184637647,-155.0,0.00010888,2]
[335395730,1724184637656,-203.24103,0.0001089,2]
[335395731,1724184637665,-236.34424982,0.0001089,2]
[335395732,1724184637674,-543.9307,0.000109,2]
[335395733,1724184637684,-3307.527,0.000109,2]
[335395734,1724184637693,-1397.0818,0.000109,2]
[335395735,1724184637703,-1129.1661,0.000109,2]
[335395736,1724184637711,-1525.6402,0.000109,2]
[335395737,1724184637721,-7709.9242,0.000109,2]
[335395738,1724184637730,-200.0,0.000109,3]
[335395739,1724184637739,-424.48847049,0.000109,2]
[335395740,1724184637749,-6693.89978446,0.000109,2]
[335395741,1724184637760,-997.25900734,0.000109,2]
[335395742,1724184637772,-1500.0,0.000109,2]
[335395743,1724184637782,-529.39516209,0.000109,2]
[335395744,1724184637793,-2007.36118124,0.000109,2]
[335395745,1724184637804,-7616.62411882,0.000109,2]
[335395746,1724184637813,-3569.13124254,0.00010949,2]
[335395747,1724184637823,-5403.79429818,0.00010949,2]
[335395748,1724184637833,-250.0,0.00010959,2]
[335395749,1724184637842,-649.14803257,0.00010979,2]
[335395750,1724184637851,-1860.7009197,0.0001098,2]
[335395751,1724184637860,-1725.0,0.00010989,2]
[335395752,1724184637870,-150.74,0.0001099,2]
[335395753,1724184637880,-150.74,0.0001099,2]
[335395754,1724184637891,-150.74,0.0001099,2]
[335395755,1724184637900,-150.74,0.0001099,2]
[335395756,1724184637910,-150.74,0.0001099,2]
[335395757,1724184637919,-150.74,0.0001099,2]
[335395758,1724184637929,-212.24302171,0.00010993,2]
[335395759,1724184637938,-290.81633982,0.00010997,2]
[335395761,1724184637948,-500.0,0.00010999,2]
[335395763,1724184637957,-500.0,0.00010999,2]
[335395765,1724184637968,-500.0,0.00010999,2]
[335395767,1724184637978,-500.0,0.00010999,2]
[335395769,1724184637988,-500.0,0.00010999,2]
[335395771,1724184637997,-500.0,0.00010999,2]
[335395773,1724184638007,-500.0,0.00010999,2]
[335395775,1724184638017,-500.0,0.00010999,2]
[335395776,1724184638026,-500.0,0.00010999,2]
[335395777,1724184638036,-500.0,0.00010999,2]
[335395778,1724184638046,-500.0,0.00010999,2]
[335395779,1724184638055,-500.0,0.00010999,2]
[335395780,1724184638065,-500.0,0.00010999,2]
[335395781,1724184638074,-503.25646011,0.00010999,2]
[335395782,1724184638085,-500.0,0.00010999,2]
[335395783,1724184638094,-500.0,0.00010999,2]
[335395784,1724184638104,-500.0,0.00010999,2]
[335395785,1724184638114,-500.0,0.00010999,2]
[335395786,1724184638123,-500.0,0.00010999,2]
[335395787,1724184638132,-500.0,0.00010999,2]
[335395788,1724184638144,-500.0,0.00010999,2]
[335395789,1724184638154,-500.0,0.00010999,2]
[335395790,1724184638163,-584.6,0.00010999,2]
[335395791,1724184638173,-584.6,0.00010999,2]
[335395792,1724184638182,-600.49,0.00010999,2]
[335395793,1724184638191,-600.49,0.00010999,2]
[335395794,1724184638200,-584.6,0.00010999,2]
[335395795,1724184638211,-600.49,0.00010999,2]
[335395796,1724184638223,-584.6,0.00010999,2]
[335395797,1724184638232,-600.49,0.00010999,2]
[335395798,1724184638241,-500.0,0.00010999,2]
[335395799,1724184638250,-500.0,0.00010999,2]
[335395800,1724184638262,-500.0,0.00010999,2]
[335395801,1724184638271,-500.0,0.00010999,2]
[335395802,1724184638281,-500.0,0.00010999,2]
[335395803,1724184638292,-500.0,0.00010999,2]
[335395804,1724184638301,-500.0,0.00010999,2]
[335395805,1724184638310,-500.0,0.00010999,2]
[335395806,1724184638319,-1184.96,0.00010999,2]
[335395807,1724184638329,-1184.96,0.00010999,2]
[335395808,1724184638338,-1184.96,0.00010999,2]
[335395809,1724184638347,-1184.96,0.00010999,2]
[335395810,1724184638357,-1406.42,0.00010999,2]
[335395811,1724184638366,-1406.42,0.00010999,2]
[335395812,1724184638375,-1406.42,0.00010999,2]
[335395813,1724184638385,-1406.42,0.00010999,2]
[335395814,1724184638396,-500.0,0.00010999,2]
[335395815,1724184638406,-500.0,0.00010999,2]
[335395816,1724184638414,-500.0,0.00010999,2]
[335395817,1724184638423,-500.0,0.00010999,2]
[335395818,1724184638433,-610.25074238,0.00010999,2]
[335395819,1724184638442,-638.21,0.00010999,2]
[335395820,1724184638452,-638.21,0.00010999,2]
[335395821,1724184638460,-638.21,0.00010999,2]
[335395822,1724184638470,-638.21,0.00010999,2]
[335395823,1724184638479,-500.0,0.00010999,2]
[335395824,1724184638489,-159.23487376,0.00010999,2]
[335395825,1724184638498,-895571.96387476,0.00011,2]
[335395826,1724184638508,-947.62132,0.00011,2]
[335395827,1724184638517,-150.0,0.00011,2]
[335395828,1724184638527,-947.62132,0.0001101,2]
[335395829,1724184638538,-320.0,0.00011078,2]
[335395830,1724184638546,-500.0,0.00011096,2]
[335395831,1724184638556,-500.0,0.00011096,2]
[335395832,1724184638566,-947.62132,0.0001117,2]
[335395833,1724184638575,-947.62132,0.0001132,2]
[335395834,1724184638585,-155.0,0.00011336,2]
[335395835,1724184638594,-155.0,0.00011336,2]
[335395836,1724184638603,-155.18237905,0.00011336,2]
[335395837,1724184638613,-184.71,0.00011425,2]
[335395838,1724184638623,-375.3645111,0.00011434,2]
[335395839,1724184638633,-947.62132,0.0001147,2]
[335395840,1724184638644,-947.62132,0.0001163,2]
[335395841,1724184638653,-160.470016,0.00011857,2]
[335395842,1724184638663,-680.0,0.00011884,2]
[335395843,1724184638672,-155.0,0.00011898,2]
[335395844,1724184638682,-633.30584726,0.00011898,2]
[335395845,1724184638692,-4052.92938474,0.00011898,2]
[335395846,1724184638701,-155.2954496,0.00011898,2]
[335395847,1724184638710,-338.72878612,0.00011898,2]
[335395848,1724184638720,-524.0,0.00011913,2]
[335395849,1724184638729,-160.0,0.00011933,2]
[335395850,1724184638738,-290.81633982,0.00012008,2]
[335395851,1724184638747,-19344.53925391,0.00012011,2]
[335395852,1724184638756,-424.48847049,0.00012026,2]
[335395853,1724184638766,-320.0,0.00012309,2]
[335395854,1724184638775,-153.72,0.00012481,2]
[335395855,1724184638786,-172.87,0.00012616,2]
[335395856,1724184638795,-454.85,0.00012717,2]
[335395857,1724184638804,-500.0,0.0001274,2]
[335395858,1724184638814,-199.999999,0.00013,2]
[335395859,1724184638824,-2502.58566001,0.00013,2]
[335395860,1724184638834,-184.71,0.00013057,2]
[335395861,1724184638844,-150.74,0.00013095,2]
[335395862,1724184638853,-4573.78,0.00013105,2]
[335395863,1724184638862,-19344.53925391,0.00013122,2]
[335395864,1724184638872,-424.48847049,0.00013151,2]
[335395865,1724184638881,-680.0,0.00013204,2]
[335395866,1724184638892,-160.0,0.00013425,2]
[335395867,1724184638902,-320.0,0.0001354,2]
[335395868,1724184638912,-739.0,0.0001357,2]
[335395869,1724184638922,-492.59,0.00013697,2]
[335395870,1724184638931,-2751.0,0.00013699,2]
[335395871,1724184638940,-200.0,0.00013699,2]
[335395872,1724184638949,-176.15,0.00013699,2]
[335395873,1724184638961,-739.0,0.0001371,2]
[335395874,1724184638972,-150.74,0.0001379,2]
[335395875,1724184638982,-150.74,0.0001379,2]
[335395876,1724184638992,-500.0,0.00013799,2]
[335395877,1724184639001,-500.0,0.00013799,2]
[335395878,1724184639010,-500.0,0.00013799,2]
[335395879,1724184639019,-500.0,0.00013799,2]
[335395880,1724184639028,-500.0,0.00013799,2]
[335395881,1724184639037,-500.0,0.00013799,2]
[335395882,1724184639047,-500.0,0.00013799,2]
[335395883,1724184639056,-500.0,0.00013799,2]
[335395884,1724184639066,-500.0,0.00013799,2]
[335395885,1724184639075,-584.6,0.00013799,2]
[335395886,1724184639084,-584.6,0.00013799,2]
[335395887,1724184639094,-600.49,0.00013799,2]
[335395888,1724184639103,-600.49,0.00013799,2]
[335395889,1724184639112,-500.0,0.00013799,2]
[335395890,1724184639121,-500.0,0.00013799,2]
[335395891,1724184639130,-500.0,0.00013799,2]
[335395892,1724184639139,-1184.96,0.00013799,2]
[335395893,1724184639149,-1406.42,0.00013799,2]
[335395894,1724184639158,-1406.42,0.00013799,2]
[335395895,1724184639167,-500.0,0.00013799,2]
[335395896,1724184639176,-500.0,0.00013799,2]
[335395897,1724184639186,-638.21,0.00013799,2]
[335395898,1724184639195,-638.21,0.00013799,2]
[335395899,1724184639205,-500.0,0.000138,5]
[335395900,1724184639216,-10571.0038281,0.000138,3]
[335395901,1724184639234,-136765.62512691,0.000138,3]
[335395902,1724184639245,-299.56452194,0.000138,3]
[335395903,1724184639772,-261.01,0.000138,3]
[335395904,1724184639784,-6618.563923,0.000138,3]
[335395905,1724184639795,-400.07483383,0.000138,3]
[335395906,1724184639807,-745.83403878,0.000138,3]
[335395907,1724184639819,-5464.19112739,0.000138,3]
[335395908,1724184639833,-1200.0,0.000138,3]
[335395909,1724184639844,-52314.45260923,0.000138,3]
[335395910,1724184639881,-1214.79818361,0.000138,3]
[335395911,1724184639894,-4439.65096878,0.000138,3]
[335395912,1724184639905,-4478.44625082,0.000138,3]
[335395913,1724184639917,-5929.71529661,0.000138,3]
[335395914,1724184639926,-500.0,0.00013836,2]
[335395915,1724184639936,-500.0,0.00013836,2]
[335395916,1724184639945,-739.0,0.0001385,2]
[335395917,1724184639954,-150.74,0.00013889,2]
[335395918,1724184639964,-500.0,0.00013889,2]
[335395919,1724184639973,-500.0,0.00013889,2]
[335395920,1724184639982,-500.0,0.00013889,2]
[335395921,1724184639992,-189.04386826,0.00013889,2]
[335395922,1724184640002,-584.6,0.00013889,2]
[335395923,1724184640011,-532.49449191,0.00013889,2]
[335395924,1724184640023,-67.99550809,0.00013889,2]
[335395925,1724184640032,-500.0,0.00013889,2]
[335395926,1724184640041,-1406.42,0.00013889,2]
[335395927,1724184640051,-148.6584916,0.00013889,2]
[335395928,1724184640063,-351.3415084,0.00013889,2]
[335395929,1724184640073,-11.72263565,0.00013889,2]
[335395930,1724184641355,-626.48736435,0.00013889,2]
[335395931,1724184641364,-150.74,0.0001389,2]
[335395932,1724184641374,-150.74,0.0001389,2]
[335395933,1724184641383,-150.74,0.0001389,2]
[335395934,1724184641392,-539.0,0.0001389,2]
[335395935,1724184641401,-500.0,0.00013899,2]
[335395936,1724184641411,-500.0,0.00013899,2]
[335395937,1724184641420,-500.0,0.00013899,2]
[335395938,1724184641429,-500.0,0.00013899,2]
[335395939,1724184641438,-500.0,0.00013899,2]
[335395940,1724184641447,-500.0,0.00013899,2]
[335395941,1724184641457,-584.6,0.00013899,2]
[335395942,1724184641466,-600.49,0.00013899,2]
[335395943,1724184641475,-500.0,0.00013899,2]
[335395944,1724184641484,-500.0,0.00013899,2]
[335395945,1724184641493,-500.0,0.00013899,2]
[335395946,1724184641502,-500.0,0.00013899,2]
[335395947,1724184641511,-237.59148641,0.00013899,2]
[335395948,1724184641522,-947.36851359,0.00013899,2]
[335395949,1724184641531,-1184.96,0.00013899,2]
[335395950,1724184641540,-1013.07576141,0.00013899,2]
[335395951,1724184641551,-171.88423859,0.00013899,2]
[335395952,1724184641560,-1406.42,0.00013899,2]
[335395953,1724184641569,-388.18719313,0.00013899,2]
[335395956,1724184642569,-500.0,0.00010999,2]
[335395957,1724184642578,-111.81280687,0.00013899,2]
[335395958,1724184642587,-248.13274146,0.00013899,2]
[335395959,1724184642596,-638.21,0.00013899,2]
[335395960,1724184642605,-173.5900964,0.000139,2]
[335395961,1724184642614,-150.0,0.000139,2]
[335395962,1724184642623,-800.0,0.000139,5]
[335395963,1724184642632,-284307.995479,0.000139,3]
[335395965,1724184642642,-280.2,0.00013932,2]
[335395967,1724184642651,-275.47854,0.00013973,2]
[335395969,1724184642661,-150.74,0.0001399,2]
[335395970,1724184642670,-739.0,0.0001399,2]
[335395971,1724184642679,-583.18915953,0.0001399,2]
[335395972,1724184642688,-538.0341324,0.00014,2]
[335395973,1724184642697,-76219.0,0.00014,2]
[335395974,1724184642707,-4158.51,0.00014,31]
[335395975,1724184642716,-4158.51,0.00014,31]
[335395976,1724184642725,-4158.51,0.00014,31]
[335395977,1724184642734,-4158.51,0.00014,31]
[335395978,1724184642743,-4158.51,0.00014,31]
[335395979,1724184642752,-4158.51,0.00014,31]
[335395980,1724184642761,-4158.51,0.00014,31]
[335395981,1724184642771,-4158.51,0.00014,31]
[335395982,1724184642780,-4158.51,0.00014,31]
[335395983,1724184642789,-4158.51,0.00014,31]
[335395984,1724184642798,-4158.51,0.00014,31]
[335395985,1724184642807,-4158.51,0.00014,31]
[335395986,1724184642816,-4158.51,0.00014,31]
[335395987,1724184642826,-4158.51,0.00014,31]
[335395988,1724184642836,-4158.51,0.00014,31]
[335395989,1724184642845,-4158.51,0.00014,31]
[335395990,1724184642855,-284.694734,0.00014,2]
[335395991,1724184642865,-150.071952,0.00014,2]
[335395992,1724184642875,-739.0,0.0001413,2]
[335395993,1724184642884,-19344.53925391,0.00014233,2]
[335395994,1724184642895,-739.0,0.0001427,2]
[335395995,1724184642904,-424.48847049,0.00014277,2]
[335395996,1724184642913,-415.2008792,0.00014398,2]
[335395997,1724184642923,-415.2008792,0.00014398,2]
[335395998,1724184642933,-150.0,0.000144,2]
[335395999,1724184642942,-739.0,0.0001441,2]
[335396000,1724184642951,-680.0,0.00014525,2]
[335396001,1724184642961,-184.71,0.00014689,2]
[335396002,1724184642970,-1000.0,0.000147,2]
[335396003,1724184642980,-320.0,0.00014771,2]
[335396004,1724184642989,-949.54206571,0.00014782,2]
[335396005,1724184642999,-275.47854,0.00014795,2]
[335396007,1724184643008,-1200.781944,0.000148,2]
[335396009,1724184643017,-562.0,0.000149,2]
[335396011,1724184643026,-150.0,0.000149,2]
[335396013,1724184643036,-1100.0,0.000149,5]
[335396015,1724184643045,-160.0,0.00014916,2]
[335396017,1724184643055,-151.0,0.00014925,2]
[335396018,1724184643065,-2279.1142433,0.00014925,2]
[335396019,1724184643075,-572.0103348,0.00014925,2]
[335396021,1724184643084,-779.17896256,0.00014931,2]
[335396023,1724184643092,-150.74,0.00014944,2]
[335396025,1724184643101,-500.0,0.00014954,2]
[335396026,1724184643110,-500.0,0.00014954,2]
[335396028,1724184643119,-500.0,0.00014954,2]
[335396030,1724184643128,-584.6,0.00014954,2]
[335396032,1724184643138,-600.49,0.00014954,2]
[335396034,1724184643148,-500.0,0.00014954,2]
[335396036,1724184643157,-500.0,0.00014954,2]
[335396038,1724184643166,-1184.96,0.00014954,2]
[335396040,1724184643175,-1406.42,0.00014954,2]
[335396042,1724184643184,-638.21,0.00014954,2]
[335396044,1724184643194,-37647.50301939,0.00014955,2]
[335396046,1724184643205,-354.726,0.00014955,2]
[335396048,1724184643228,-500.0,0.00010999,2]
[335396049,1724184643238,-650.0,0.00014955,2]
[335396050,1724184644032,-2373.27018182,0.00014955,2]
[335396057,1724184645627,-322.94675217,0.000109,2]
[335396058,1724184645636,-500.0,0.00010999,2]
[335396059,1724184645647,-500.0,0.00010999,2]
[335396060,1724184645656,-500.0,0.00013899,2]
[335396061,1724184645665,-500.0,0.00013899,2]
[335396062,1724184645674,-500.0,0.00013999,2]
[335396063,1724184645683,-5886.68222718,0.00014955,2]
[335396064,1724184645694,-713.7625,0.00014955,2]
[335396065,1724184645705,-130.41954595,0.00014955,2]
[335396066,1724184645714,-250.0,0.00014955,2]
[335396067,1724184645723,-250.0,0.00014955,2]
[335396068,1724184645732,-151.0,0.00014955,2]
[335396069,1724184645741,-454.85,0.00014966,2]
[335396070,1724184645751,-153.72,0.00014977,2]
[335396071,1724184645760,-180.02911,0.0001499,2]
[335396072,1724184645769,-150.74,0.0001499,2]
[335396073,1724184645778,-500.0,0.00014999,2]
[335396074,1724184645786,-495.0,0.00015,2]
[335396075,1724184645795,-3009.34314437,0.00015,2]
[335396076,1724184645851,-1956.77125,0.00015,2]
[335396077,1724184645863,-1502.60722678,0.00015,2]
[335396079,1724184662316,5058.49496082,9.811e-05,2]
[335396080,1724184662338,4200.48563918,9.811e-05,2]
[335396083,1724184748467,421.20337814,9.811e-05,2]
[335396084,1724184748491,223.62662186,9.811e-05,2]
[335396085,1724184748515,1630.99152147,9.811e-05,2]
[335396086,1724184748541,1580.16165605,9.811e-05,2]
[335396087,1724184748562,5799.51436082,9.811e-05,2]
[335396088,1724184748581,10000.0,9.811e-05,2]
[335396089,1724184748600,744.17317753,9.811e-05,2]
[335396090,1724184755004,155.0,9.811e-05,2]
[335396091,1724184757323,370.92689937,9.811e-05,2]
[335396092,1724184761313,1334.05038074,9.811e-05,2]
[335396093,1724184787319,3075.03809494,9.811e-05,2]
[335396095,1724184869955,336.0,9.701e-05,2]
[335396100,1724185085328,3984.81144742,9.701e-05,2]
[335396101,1724185085349,10000.0,9.701e-05,2]
[335396102,1724185085372,2259.89359389,9.701e-05,2]
[335396103,1724185107307,500.0,9.701e-05,2]
[335396104,1724185107779,500.0,9.701e-05,2]
[335396105,1724185107970,500.0,9.701e-05,2]
[335396106,1724185108300,500.0,9.701e-05,2]
[335396107,1724185112404,5740.10640611,9.701e-05,2]
[335396108,1724185112431,11205.58254513,9.701e-05,2]
[335396109,1724185185336,15050.91055958,9.701e-05,2]
[335396110,1724185197301,1269.9153111,9.701e-05,2]
[335396111,1724185317439,6178.99480044,9.701e-05,2]
[335396114,1724185332296,197.9462959,9.701e-05,2]
[335396115,1724185341565,155.36,9.836e-05,2]
[335396116,1724185411150,153.35,9.438e-05,2]
[335396151,1724185673686,188.31,8.172e-05,2]
[335396155,1724185741736,-297.66231422,9.905e-05,2]
[335396156,1724185741761,-8.19573365,9.905e-05,2]
[335396159,1724185807373,155.0,9.899e-05,2]
[335396160,1724185814246,455.53,8.23e-05,2]
[335396170,1724185831829,-155.0,9.988e-05,2]
[335396171,1724185831839,-737.29859306,0.0001,2]
[335396172,1724185831850,-280.56667432,0.0001,2]
[335396173,1724185831865,-32.13473262,0.0001,2]
[335396174,1724185831875,-155.0,0.00010009,2]
[335396175,1724185831884,-164.37927092,0.00010009,2]
[335396176,1724185831893,-155.0,0.00010009,2]
[335396177,1724185831902,-70.75479039,0.00010097,2]
[335396178,1724185831913,-587.08434111,0.00010097,2]
[335396179,1724185831922,-250.0,0.00010103,2]
[335396180,1724185831931,-164.07,0.00010374,2]
[335396181,1724185831941,-415.632,0.00010416,2]
[335396182,1724185831951,-455.53,0.00010494,2]
[335396183,1724185831960,-164.0,0.00010514,2]
[335396184,1724185831969,-155.0,0.00010566,2]
[335396185,1724185831978,-200.0,0.00010618,2]
[335396186,1724185831987,-190.49830266,0.00010713,2]
[335396187,1724185831997,-166.76578094,0.00010852,2]
[335396188,1724185832006,-155.0,0.00010861,2]
[335396189,1724185832015,-162.38682852,0.0001089,2]